bitfinex-derivatives/quotes_ETHF0:USTF0_20241018
["timestamp","ask_amount","ask_price","bid_price","bid_amount"]
[1729260699066,4.1,2631.3,2630.4,3.2078]
[1729260699255,0.3802,2630.6,2630.1,0.38026]
[1729260699460,0.38021,2630.5,2630.1,0.38026]
[1729260699666,1.3237,2630.9,2630.2,3.2078]
[1729260699855,0.38022,2630.5,2630.0,0.38027]
[1729260700164,1.3237,2630.9,2629.8,3.2078]
[1729260700165,4.1,2630.3,2629.8,3.2078]
[1729260700367,4.1,2630.0,2628.9,4.5319]
[1729260700666,4.1,2630.0,2629.1,0.3804]
[1729260700667,0.38035,2629.5,2629.1,0.3804]
[1729260700865,1.3237,2629.9,2628.6,3.2078]
[1729260701169,0.38041,2629.1,2628.6,3.58827]
[1729260701359,1.2919,2629.4,2628.6,3.58827]
[1729260701360,1.67228,2629.4,2628.6,3.2078]
[1729260701559,4.1,2629.2,2628.7,3.2078]
[1729260701759,4.1,2629.2,2628.0,2.6575]
[1729260701760,1.2919,2629.4,2628.4,3.2078]
[1729260702066,0.38039,2629.3,2628.7,3.2078]
[1729260702268,0.38032,2629.8,2629.3,0.38038]
[1729260702572,0.38033,2629.7,2629.2,0.38039]
[1729260702764,3.2078,2630.2,2629.3,3.2078]
[1729260703457,0.38033,2629.7,2629.3,3.58817]
[1729260703660,3.2078,2630.2,2629.3,3.2078]
[1729260703972,0.38035,2629.6,2629.1,3.2078]
[1729260704163,0.38035,2629.6,2629.2,0.38039]
[1729260704358,3.2078,2630.1,2629.3,3.2078]
[1729260704566,0.38037,2629.5,2629.3,3.2078]
[1729260705065,0.38037,2629.4,2628.8,0.38044]
[1729260705368,0.38041,2629.1,2629.0,3.2078]
[1729260705569,0.38043,2629.0,2628.9,3.2078]
[1729260705873,0.38045,2628.9,2628.8,3.2078]
[1729260706064,0.38045,2628.9,2628.6,0.38047]
[1729260706259,0.95092,2629.4,2628.5,3.2078]
[1729260706461,0.38048,2628.7,2628.5,3.2078]
[1729260706669,4.1588,2629.2,2628.5,3.2078]
[1729260706670,0.38048,2628.6,2628.5,3.2078]
[1729260707471,4.18448,2628.6,2628.5,3.2078]
[1729260708173,5.3689,2629.1,2628.5,3.2078]
[1729260708371,0.38048,2628.7,2628.5,3.2078]
[1729260708677,0.38048,2628.6,2628.5,3.2078]
[1729260708869,44.604,2629.0,2628.2,3.2078]
[1729260709071,0.95114,2628.8,2627.9,0.38058]
[1729260709275,4.1,2628.5,2627.8,0.3806]
[1729260709566,1.2807,2628.7,2627.5,4.5567]
[1729260709567,2.5643,2628.7,2627.5,4.5567]
[1729260709779,2.5643,2628.7,2627.8,0.38059]
[1729260709780,0.38055,2628.2,2627.8,0.38059]
[1729260709964,0.38055,2628.2,2627.5,1.3489]
[1729260709965,2.5643,2628.7,2627.5,4.5567]
[1729260710163,2.5643,2628.7,2627.9,3.2078]
[1729260710164,0.95125,2628.5,2627.9,3.2078]
[1729260710366,0.3806,2627.8,2627.5,0.38064]
[1729260710573,3.2078,2628.5,2627.5,3.2078]
[1729260710774,3.2078,2628.5,2627.8,3.2078]
[1729260710775,0.38058,2628.0,2627.8,3.2078]
[1729260711175,0.38062,2627.7,2627.3,3.2078]
[1729260711370,4.1,2628.2,2627.6,3.2078]
[1729260711371,0.38061,2627.8,2627.6,3.2078]
[1729260711571,0.95129,2628.4,2627.6,3.2078]
[1729260711875,3.2078,2628.2,2627.6,3.2078]
[1729260712069,3.2078,2628.3,2627.6,3.2078]
[1729260712478,0.3806,2627.8,2627.6,3.2078]
[1729260712678,4.1,2628.2,2627.6,3.2078]
[1729260712977,3.2078,2628.3,2627.6,3.2078]
[1729260713673,0.38057,2628.0,2627.7,0.38061]
[1729260713868,3.2078,2628.6,2627.6,3.2078]
[1729260714173,0.95129,2628.4,2627.6,3.2078]
[1729260714379,4.1,2628.5,2627.6,3.2078]
[1729260714568,4.1,2628.2,2627.6,3.2078]
[1729260714870,0.38059,2627.9,2627.6,3.2078]
[1729260715074,3.2078,2628.3,2627.7,0.3806]
[1729260715266,0.38057,2628.1,2627.8,0.3806]
[1729260715473,0.38058,2627.9,2627.6,3.2078]
[1729260715672,0.38058,2628.0,2627.6,3.2078]
[1729260715875,4.1,2628.2,2627.6,3.2078]
[1729260716077,0.95158,2627.6,2626.8,3.2078]
[1729260716383,0.38073,2626.9,2626.8,3.2078]
[1729260716768,4.18793,2626.9,2626.8,3.2078]
[1729260716981,0.38073,2626.9,2626.8,3.2078]
[1729260717286,0.3808,2626.5,2625.9,3.2078]
[1729260717476,0.3808,2626.5,2625.7,1.3559]
[1729260717477,4.1,2626.5,2625.7,1.3559]
[1729260717670,3.2078,2626.4,2625.7,1.3559]
[1729260717871,2.81632657,2627.1,2625.2,1.3452]
[1729260717872,3.2078,2626.1,2625.2,1.3452]
[1729260718073,3.2078,2626.1,2625.6,0.38091]
[1729260718074,0.38087,2626.0,2625.6,0.38091]
[1729260718270,3.2078,2626.1,2625.5,0.38093]
[1729260718575,0.38095,2625.4,2625.0,0.381]
[1729260718778,4.1,2625.2,2624.9,3.2078]
[1729260718973,7.0174,2625.1,2624.2,3.2078]
[1729260719167,3.2078,2625.1,2624.2,3.2078]
[1729260719367,3.2078,2625.1,2624.5,3.2078]
[1729260719579,4.1,2625.6,2624.4,8.26053]
[1729260719580,3.2078,2625.6,2624.4,8.26053]
[1729260719777,3.2078,2625.6,2624.5,3.2078]
[1729260719979,3.2078,2625.3,2624.5,3.2078]
[1729260720481,0.3809,2625.7,2625.1,0.38099]
[1729260720777,4.1,2625.7,2624.3,4.5528]
[1729260720969,3.2078,2625.8,2624.3,4.5528]
[1729260720970,0.38093,2625.5,2624.8,3.2078]
[1729260721175,0.38093,2625.5,2624.5,0.95269]
[1729260721176,0.38092,2625.6,2625.2,0.38097]
[1729260721476,3.58865,2626.1,2625.7,0.3809]
[1729260721675,0.38088,2625.9,2625.5,0.38092]
[1729260721879,7.3078,2626.4,2625.1,3.2078]
[1729260722076,0.38083,2626.3,2625.8,0.38088]
[1729260722279,3.2078,2626.4,2625.7,3.2078]
[1729260722580,0.38075,2626.8,2626.4,0.3808]
[1729260722779,7.3078,2627.1,2626.0,0.95215]
[1729260722979,3.2078,2627.1,2626.3,3.2078]
[1729260723180,1.3084,2627.4,2626.3,3.2078]
[1729260723574,1.3084,2627.4,2626.4,0.95201]
[1729260723776,1.3084,2627.4,2626.3,3.2078]
[1729260723978,0.38069,2627.2,2626.3,3.2078]
[1729260724178,3.2078,2627.7,2627.0,3.2078]
[1729260724375,3.2078,2627.7,2626.9,3.2078]
[1729260724578,0.95137,2628.2,2626.5,0.95197]
[1729260724579,40.8,2627.6,2626.7,0.9519]
[1729260724879,4.4757,2628.3,2625.9,1.9814299]
[1729260724880,1.2679,2628.3,2627.0,3.2078]
[1729260725083,0.38058,2628.0,2627.2,4.15952]
[1729260725283,1.2679,2628.3,2627.7,0.38061]
[1729260725284,0.38056,2628.1,2627.7,0.38061]
[1729260725591,7.3078,2628.4,2627.6,3.2078]
[1729260725889,7.3078,2628.4,2626.8,1.2557]
[1729260725890,0.38058,2628.0,2627.3,3.2078]
[1729260726077,3.2078,2628.1,2627.3,0.38066]
[1729260726078,0.38064,2627.6,2627.3,0.38066]
[1729260726381,3.2078,2628.1,2626.8,1.2557]
[1729260726382,0.95154,2627.7,2626.8,1.2557]
[1729260726589,0.38073,2626.9,2626.6,0.38077]
[1729260726777,3.2078,2627.6,2626.3,3.2078]
[1729260726978,0.38069,2627.2,2626.9,0.38073]
[1729260727180,3.2078,2627.6,2626.5,0.38078]
[1729260727181,0.95162,2627.5,2626.5,0.38078]
[1729260727379,0.95162,2627.5,2626.3,3.2078]
[1729260727380,4.15949,2627.3,2626.3,3.2078]
[1729260727579,0.3808,2626.4,2626.3,3.2078]
[1729260727787,3.2078,2626.9,2626.0,1.2647]
[1729260727989,0.38079,2626.5,2626.2,0.38082]
[1729260728198,0.95187,2626.8,2626.0,1.2647]
[1729260728489,0.38082,2626.3,2626.0,1.64555]
[1729260728690,0.95187,2626.8,2626.0,1.2647]
[1729260728984,3.2078,2626.9,2626.1,0.38084]
[1729260729291,0.38084,2626.1,2626.0,1.2647]
[1729260729483,3.2078,2626.6,2625.8,3.58868]
[1729260729484,0.38086,2626.0,2625.8,3.2078]
[1729260729891,0.38087,2625.9,2625.8,3.2078]
[1729260730193,0.95197,2626.5,2625.8,3.2078]
[1729260730485,0.38085,2626.1,2625.8,3.58868]
[1729260731181,40.8,2626.5,2625.8,3.2078]
[1729260731390,0.38085,2626.1,2625.8,3.58869]
[1729260731684,0.38081,2626.4,2626.1,0.38083]
[1729260731878,0.38078,2626.6,2626.3,0.38081]
[1729260732078,0.38076,2626.7,2626.4,0.3808]
[1729260732282,0.38074,2626.9,2626.5,3.2078]
[1729260732485,0.38069,2627.2,2626.5,3.2078]
[1729260732686,0.38069,2627.2,2626.3,5.05204]
[1729260732687,0.3807,2627.2,2626.9,0.38073]
[1729260732991,40.8,2627.5,2626.4,4.5227]
[1729260733199,4.1,2627.4,2626.4,4.5227]
[1729260733393,0.38073,2627.0,2626.7,0.38075]
[1729260733587,3.2078,2627.3,2626.7,0.38075]
[1729260733886,0.38074,2626.9,2626.6,3.2078]
[1729260734093,0.95172,2627.2,2626.6,3.2078]
[1729260734291,0.38076,2626.7,2626.5,0.38079]
[1729260734491,0.95172,2627.2,2626.4,1.3149]
[1729260734696,3.2078,2627.3,2626.4,1.3149]
[1729260734895,0.38075,2626.8,2626.5,0.38078]
[1729260735085,4.1,2627.1,2626.4,1.3149]
[1729260735284,3.2078,2627.3,2627.1,0.38069]
[1729260735491,3.2078,2627.3,2626.9,3.2078]
[1729260735687,3.2078,2627.3,2627.1,0.38069]
[1729260736102,7.9064,2627.2,2626.4,4.5227]
[1729260736403,0.38079,2626.5,2626.4,4.5227]
[1729260736590,0.38073,2626.9,2626.4,4.5227]
[1729260736892,0.38079,2626.5,2626.4,3.2078]
[1729260737299,4.18799,2626.5,2626.4,3.2078]
[1729260737987,0.38079,2626.5,2626.4,3.2078]
[1729260738293,0.38077,2626.6,2626.4,3.2078]
[1729260738488,3.2078,2627.0,2626.4,3.2078]
[1729260738889,0.38077,2626.7,2626.4,3.2078]
[1729260739089,0.95183,2626.9,2626.4,3.2078]
[1729260739298,0.38079,2626.5,2626.4,3.2078]
[1729260739491,7.3078,2627.0,2626.4,3.2078]
[1729260739796,0.38073,2626.9,2626.7,0.38074]
[1729260740001,0.38073,2626.9,2626.5,1.2996]
[1729260740307,3.58853,2627.0,2626.8,0.38074]
[1729260740492,3.2078,2627.0,2626.5,1.2996]
[1729260740687,0.3807,2627.1,2626.8,3.2078]
[1729260740993,3.2078,2627.5,2626.6,3.2078]
[1729260741395,0.38071,2627.1,2626.9,0.38072]
[1729260741599,0.38072,2627.0,2626.8,0.38074]
[1729260741993,4.1,2627.3,2626.5,1.2996]
[1729260742294,0.3808,2626.4,2626.3,3.2078]
[1729260742504,0.95191,2626.7,2626.3,3.2078]
[1729260742793,3.2078,2626.9,2626.0,3.2078]
[1729260743695,0.38074,2626.8,2626.4,0.3808]
[1729260743998,0.38078,2626.6,2626.4,0.38079]
[1729260744201,3.2078,2626.9,2626.3,3.2078]
[1729260744401,0.38073,2626.9,2626.7,0.38075]
[1729260744699,0.38073,2626.9,2626.6,3.2078]
[1729260744700,0.38073,2626.9,2626.8,0.38074]
[1729260744895,0.38074,2626.8,2626.7,0.38075]
[1729260745085,0.38073,2626.9,2626.8,0.38074]
[1729260745290,0.95172,2627.2,2626.6,0.38077]
[1729260745696,0.95172,2627.2,2626.2,0.95206]
[1729260745697,0.38076,2626.7,2626.5,0.38077]
[1729260745897,45.85166,2627.4,2626.9,0.38072]
[1729260746097,0.38075,2626.8,2626.6,3.2078]
[1729260746293,0.95173,2627.2,2626.3,3.2078]
[1729260746601,45.85166,2627.4,2626.3,3.2078]
[1729260746901,0.38072,2627.0,2626.4,4.15979]
[1729260747096,0.38072,2627.0,2626.7,3.2078]
[1729260747492,45.85166,2627.4,2626.7,3.2078]
[1729260747493,40.8,2627.4,2626.7,3.2078]
[1729260747698,1.2903,2627.7,2627.0,3.2078]
[1729260747997,0.38061,2627.8,2627.7,0.38061]
[1729260748196,0.38059,2627.9,2627.8,0.38059]
[1729260748495,0.38059,2627.9,2627.4,0.95165]
[1729260748496,40.8,2628.1,2627.4,0.95165]
[1729260748889,0.38057,2628.0,2627.9,0.38058]
[1729260749200,40.8,2628.1,2627.6,0.38063]
[1729260749402,0.95147,2627.9,2627.4,3.2078]
[1729260749694,3.2078,2627.7,2626.9,4.18507283]
[1729260749899,4.1,2627.9,2627.8,0.3806]
[1729260749900,0.38059,2627.9,2627.8,0.3806]
[1729260750196,40.8,2628.1,2627.6,3.2078]
[1729260750397,0.38058,2628.0,2627.9,0.38058]
[1729260750603,0.38058,2628.0,2627.6,3.2078]
[1729260750604,40.8,2628.1,2628.0,0.38057]
[1729260750901,0.38054,2628.3,2627.9,3.2078]
[1729260751098,0.38054,2628.3,2628.2,0.38053]
[1729260751297,0.38055,2628.2,2628.1,0.38054]
[1729260751499,40.8,2628.3,2627.9,3.2078]
[1729260751699,1.2415,2628.5,2628.0,3.2078]
[1729260751903,0.38049,2628.6,2628.5,0.38049]
[1729260752199,40.8,2628.6,2628.2,3.2078]
[1729260752398,0.38053,2628.3,2628.2,0.38054]
[1729260752589,40.8,2628.6,2627.8,3.2078]
[1729260752790,44.95903,2628.6,2628.0,0.38056]
[1729260753101,0.38056,2628.1,2627.9,0.38057]
[1729260753301,0.38055,2628.2,2628.0,0.38056]
[1729260753495,44.95903,2628.6,2628.0,0.38056]
[1729260753707,0.38055,2628.2,2628.0,0.38056]
[1729260753898,0.38058,2627.9,2627.8,3.2078]
[1729260754098,0.38058,2627.9,2627.7,0.3806]
[1729260754099,0.95125,2628.5,2627.7,0.3806]
[1729260754406,0.38055,2628.2,2628.0,0.38057]
[1729260754599,1.3249,2628.5,2627.6,3.2078]
[1729260754805,1.3249,2628.5,2627.9,0.38058]
[1729260754806,0.38056,2628.1,2627.9,0.38058]
[1729260755004,3.2078,2628.3,2627.4,2.27017283]
[1729260755298,3.2078,2628.3,2627.7,0.38061]
[1729260755299,2.27066,2628.2,2627.7,0.38061]
[1729260755498,0.38059,2627.9,2627.7,0.38061]
[1729260755693,0.38059,2627.9,2627.7,0.3806]
[1729260755893,1.3249,2628.5,2627.8,3.8056]
[1729260756095,1.3249,2628.5,2627.7,3.2078]
[1729260756298,0.38057,2628.1,2627.7,3.2078]
[1729260756501,0.95129,2628.4,2627.7,3.2078]
[1729260756694,0.38058,2628.0,2627.8,0.38059]
[1729260756890,0.95129,2628.4,2627.7,3.2078]
[1729260757090,0.95129,2628.4,2628.2,0.38053]
[1729260757091,0.38052,2628.4,2628.2,0.38053]
[1729260757301,0.38052,2628.4,2628.0,3.2078]
[1729260757497,40.8,2628.6,2628.0,3.2078]
[1729260757697,0.38055,2628.2,2628.1,0.38055]
[1729260758108,0.38054,2628.3,2628.0,3.2078]
[1729260758403,0.38054,2628.3,2628.1,0.38055]
[1729260758595,0.38053,2628.3,2628.1,0.38055]
[1729260759007,0.38054,2628.2,2628.1,0.38055]
[1729260759203,41.75123,2628.6,2627.8,3.2078]
[1729260759506,0.38063,2627.6,2627.5,3.58844]
[1729260759999,0.38063,2627.6,2627.5,3.2078]
[1729260760604,0.38061,2627.8,2627.5,3.2078]
[1729260760901,3.2078,2628.3,2627.5,3.2078]
[1729260761106,0.38057,2628.1,2627.9,0.38058]
[1729260761605,0.95125,2628.5,2628.0,0.38056]
[1729260761908,40.8,2628.6,2627.9,3.2078]
[1729260762104,41.75123,2628.6,2627.9,3.2078]
[1729260762296,0.95126,2628.5,2627.9,3.2078]
[1729260762499,0.38057,2628.0,2627.9,3.2078]
[1729260762902,0.3806,2627.9,2627.7,0.3806]
[1729260763101,0.3806,2627.9,2627.6,3.2078]
[1729260763397,0.95135,2628.3,2627.6,3.2078]
[1729260763610,0.38055,2628.2,2628.1,0.38055]
[1729260763811,0.38055,2628.2,2627.6,4.15936]
[1729260764108,3.2078,2628.4,2627.7,0.95154]
[1729260764309,0.38055,2628.2,2627.7,0.95154]
[1729260764504,0.38055,2628.2,2628.1,0.38056]
[1729260764808,0.38054,2628.3,2628.1,0.38056]
[1729260765008,0.38054,2628.3,2628.2,0.38054]
[1729260765305,0.38053,2628.4,2628.0,0.38057]
[1729260765507,1.3563,2628.7,2628.2,3.2078]
[1729260765713,0.3805,2628.6,2628.4,0.3805]
[1729260766007,0.38051,2628.4,2628.3,0.38053]
[1729260766307,1.3563,2628.7,2627.9,3.2078]
[1729260766308,0.95121,2628.6,2627.9,3.2078]
[1729260766517,0.38056,2628.1,2628.0,0.38056]
[1729260767010,0.95121,2628.6,2627.9,3.2078]
[1729260767613,0.38057,2628.0,2627.9,3.58838]
[1729260767797,3.2078,2628.2,2627.4,3.2078]
[1729260768001,3.2078,2628.2,2627.3,0.38066]
[1729260768002,0.9515,2627.8,2627.3,0.38066]
[1729260768211,0.95154,2627.7,2627.1,3.2078]
[1729260768609,2.22108,2627.9,2627.1,3.2078]
[1729260768813,0.38065,2627.5,2627.3,0.38066]
[1729260769109,0.38063,2627.6,2627.1,3.2078]
[1729260769312,3.2078,2628.3,2627.6,0.95158]
[1729260769500,0.38058,2628.0,2627.9,0.38058]
[1729260769906,3.2078,2628.3,2628.2,0.38054]
[1729260770107,42.1033,2628.6,2628.2,0.38054]
[1729260770305,42.1033,2628.6,2628.4,0.38051]
[1729260770602,42.1033,2628.6,2627.6,5.4308]
[1729260770603,0.38053,2628.3,2628.2,0.38054]
[1729260770808,0.38052,2628.4,2628.3,0.38053]
[1729260771014,0.38052,2628.4,2628.0,3.2078]
[1729260771203,1.3033,2628.6,2628.0,3.2078]
[1729260771410,0.38048,2628.7,2628.5,0.38049]
[1729260771603,3.2078,2628.8,2628.0,3.2078]
[1729260771803,4.1,2628.6,2628.0,3.2078]
[1729260772003,0.38056,2628.1,2628.0,3.2078]
[1729260772210,0.38055,2628.2,2628.0,3.58837]
[1729260772410,0.38056,2628.1,2628.0,3.2078]
[1729260773210,0.95124,2628.6,2628.0,3.2078]
[1729260773211,0.38054,2628.3,2628.0,3.2078]
[1729260773412,0.38051,2628.5,2628.3,0.38052]
[1729260773614,3.2078,2628.8,2628.0,3.58836]
[1729260773615,4.15896,2628.8,2628.0,3.58836]
[1729260773814,0.38056,2628.1,2628.0,3.2078]
[1729260774015,0.38054,2628.3,2628.1,0.38055]
[1729260774214,0.95123,2628.6,2628.1,0.38055]
[1729260774411,0.95123,2628.6,2628.0,3.2078]
[1729260774815,0.38056,2628.1,2628.0,3.2078]
[1729260775017,0.38054,2628.2,2628.1,0.38055]
[1729260775216,0.38055,2628.2,2628.0,3.58836]
[1729260775519,0.38055,2628.2,2628.1,0.38056]
[1729260775717,0.38055,2628.2,2628.0,3.2078]
[1729260775919,0.38055,2628.2,2628.1,0.38055]
[1729260776124,0.95123,2628.6,2628.0,3.2078]
[1729260776125,0.38056,2628.1,2628.0,3.2078]
[1729260776417,0.38055,2628.2,2628.0,3.58836]
[1729260776614,1.33177,2628.5,2628.0,3.58836]
[1729260776807,0.95123,2628.6,2628.1,0.38055]
[1729260777021,0.95123,2628.6,2628.0,3.2078]
[1729260777219,44.0078,2628.9,2628.2,3.2078]
[1729260777618,44.9,2628.9,2628.2,3.2078]
[1729260777812,0.38053,2628.3,2628.2,0.38054]
[1729260778017,0.38055,2628.2,2628.0,0.38056]
[1729260778211,0.38055,2628.2,2627.9,3.2078]
[1729260778212,0.38055,2628.2,2628.1,0.38056]
[1729260778610,0.95123,2628.6,2628.2,0.38054]
[1729260778611,0.38053,2628.3,2628.2,0.38054]
[1729260778815,40.8,2628.9,2628.2,3.2078]
[1729260779128,0.38053,2628.3,2628.2,3.58834]
[1729260779725,0.95119,2628.7,2628.2,3.58834]
[1729260780026,0.38052,2628.4,2628.2,3.58834]
[1729260780326,0.38053,2628.3,2628.2,3.2078]
[1729260781427,11.1126,2628.3,2627.0,3.2078]
[1729260781620,4.1,2627.9,2627.0,3.2078]
[1729260781931,0.38069,2627.2,2627.0,3.2078]
[1729260782231,0.3807,2627.1,2627.0,3.2078]
[1729260782822,1.247,2627.3,2626.7,1.3084]
[1729260783026,1.247,2627.3,2626.8,0.38074]
[1729260783325,0.38072,2627.0,2626.8,0.38074]
[1729260783528,1.247,2627.3,2626.8,0.38073]
[1729260783529,0.38071,2627.1,2626.8,0.38073]
[1729260783730,7.3078,2627.2,2626.7,3.2078]
[1729260783918,7.3078,2627.2,2625.7,4.18507283]
[1729260783919,4.1,2626.8,2625.7,4.18507283]
[1729260784120,4.1,2626.8,2626.0,0.38085]
[1729260784423,0.38082,2626.3,2625.9,0.38086]
[1729260784622,0.38084,2626.2,2625.8,1.72608]
[1729260784821,6.38367,2626.8,2625.8,1.3452]
[1729260785025,0.38085,2626.1,2625.8,1.72608]
[1729260785323,0.9519,2626.7,2625.8,1.72608]
[1729260785324,0.38084,2626.2,2625.8,1.72609]
[1729260785528,0.38083,2626.3,2625.9,0.38087]
[1729260785728,0.38083,2626.3,2625.9,0.38086]
[1729260785931,0.38082,2626.4,2626.0,0.38085]
[1729260786117,1.3318,2626.8,2626.0,3.2078]
[1729260786424,0.38081,2626.4,2626.1,0.38084]
[1729260786732,0.95187,2626.8,2625.8,1.3452]
[1729260786918,0.38083,2626.2,2625.9,0.38086]
[1729260787120,0.95193,2626.7,2625.8,1.3452]
[1729260787334,0.38084,2626.2,2625.9,0.38087]
[1729260787522,0.95187,2626.8,2625.8,1.3452]
[1729260787721,0.95187,2626.8,2626.0,3.2078]
[1729260787722,0.38082,2626.3,2626.0,3.2078]
[1729260787923,0.9519,2626.7,2626.0,0.38085]
[1729260788121,0.38084,2626.2,2626.0,3.58866]
[1729260788321,0.38082,2626.3,2626.1,0.38084]
[1729260788629,0.95187,2626.8,2626.2,0.38083]
[1729260788829,0.38081,2626.4,2626.2,0.38083]
[1729260789020,0.38078,2626.6,2626.3,0.38081]
[1729260789220,0.38078,2626.6,2626.3,0.3808]
[1729260789421,13.678,2626.9,2626.5,3.2078]
[1729260789627,13.678,2626.9,2626.8,0.38074]
[1729260789822,18.1328,2627.3,2626.7,3.2078]
[1729260790029,0.38072,2627.0,2626.7,3.2078]
[1729260790228,18.1328,2627.3,2626.9,0.38072]
[1729260790427,18.1328,2627.3,2626.8,0.38074]
[1729260790627,0.38071,2627.1,2626.7,3.2078]
[1729260791031,0.38073,2627.0,2626.7,3.2078]
[1729260791220,14.925,2627.3,2626.7,3.58855]
[1729260791221,0.38069,2627.2,2626.7,3.58855]
[1729260791427,0.38074,2626.8,2626.7,3.2078]
[1729260792136,0.38074,2626.8,2626.7,7.015]
[1729260792338,0.38074,2626.8,2626.7,3.2078]
[1729260792722,0.95178,2627.1,2626.3,3.2078]
[1729260792922,0.95184,2626.9,2626.0,3.2078]
[1729260793123,7.3078,2627.1,2626.0,3.2078]
[1729260793440,0.38084,2626.2,2626.0,3.2078]
[1729260793629,13.678,2626.5,2626.0,3.2078]
[1729260793831,14.9343,2626.5,2626.0,3.2078]
[1729260794335,14.9343,2626.5,2626.0,3.58865]
[1729260794535,0.38085,2626.1,2625.9,1.69807]
[1729260794729,14.9343,2626.5,2625.9,1.3172]
[1729260795034,14.9343,2626.5,2625.4,1.2971]
[1729260795035,4.15985,2626.3,2625.4,4.5049]
[1729260795235,0.38088,2625.9,2625.7,0.3809]
[1729260795430,13.678,2626.3,2625.8,3.808]
[1729260795630,13.678,2626.3,2625.6,3.2078]
[1729260795631,0.3809,2625.7,2625.6,3.2078]
[1729260796229,0.38093,2625.5,2625.4,4.525]
[1729260796428,0.95218,2626.0,2625.4,4.90594]
[1729260796429,0.38092,2625.7,2625.4,4.90594]
[1729260796730,0.95218,2626.0,2625.4,3.2078]
[1729260796731,0.38093,2625.5,2625.4,3.2078]
[1729260798127,0.38093,2625.5,2624.6,1.2426]
[1729260798128,0.95237,2625.4,2624.7,3.2078]
[1729260798445,13.678,2625.1,2624.7,3.2078]
[1729260798635,0.38101,2625.0,2624.8,0.38103]
[1729260798826,13.678,2625.1,2624.7,3.58884]
[1729260799038,0.38102,2625.0,2624.7,3.58884]
[1729260799233,13.678,2625.1,2624.7,3.58884]
[1729260799739,0.38102,2625.0,2624.7,3.58884]
[1729260799942,0.38102,2625.0,2624.8,0.38103]
[1729260800128,13.678,2625.1,2624.7,3.58884]
[1729260800129,0.38102,2624.9,2624.7,3.58884]
[1729260800337,0.95252,2625.0,2624.3,3.2078]
[1729260800541,13.678,2624.7,2624.3,3.2078]
[1729260800732,1.2934,2624.9,2624.3,3.2078]
[1729260800733,0.38109,2624.4,2624.3,3.2078]
[1729260802841,13.678,2624.8,2624.3,3.2078]
[1729260803342,13.678,2624.8,2624.4,0.38108]
[1729260803343,0.38105,2624.7,2624.4,0.38108]
[1729260803532,13.678,2624.8,2624.3,3.2078]
[1729260803729,0.38108,2624.5,2624.3,3.2078]
[1729260803936,0.38109,2624.4,2624.3,3.2078]
[1729260805043,14.05909,2624.4,2624.3,3.2078]
[1729260805342,17.86949,2624.4,2624.3,3.2078]
[1729260805530,17.86949,2624.4,2623.6,0.64244613]
[1729260805531,0.38117,2623.9,2623.5,1.2881]
[1729260805736,14.05919,2623.8,2623.5,1.66932]
[1729260805940,13.678,2623.8,2623.1,3.2078]
[1729260806242,13.678,2623.8,2623.1,0.38128]
[1729260806243,0.38125,2623.4,2623.1,0.38128]
[1729260806440,3.2078,2623.6,2623.2,0.38126]
[1729260806635,0.38123,2623.5,2623.2,0.38126]
[1729260807042,3.2078,2623.6,2622.7,4.80003625]
[1729260807343,0.38123,2623.5,2623.3,0.38124]
[1729260807529,3.2078,2623.6,2622.7,4.80003625]
[1729260807729,3.2078,2623.6,2622.8,0.38132]
[1729260807730,13.678,2623.3,2622.8,0.38132]
[1729260807935,13.678,2623.5,2622.7,3.2078]
[1729260808132,3.2078,2623.3,2622.7,3.2078]
[1729260808534,13.678,2623.5,2623.4,0.38124]
[1729260808732,3.2078,2623.6,2623.5,0.38122]
[1729260808733,13.678,2623.6,2623.5,0.38122]
[1729260808943,13.678,2624.1,2624.0,0.38115]
[1729260809149,13.678,2624.1,2623.9,0.38116]
[1729260809335,0.38115,2624.0,2623.5,1.2596]
[1729260809643,13.678,2624.1,2623.9,0.38115]
[1729260809830,13.678,2624.1,2624.0,0.38115]
[1729260811453,13.678,2624.2,2624.1,0.38114]
[1729260814038,13.678,2624.2,2624.1,4.19154]
[1729260814241,13.678,2624.5,2624.4,0.38109]
[1729260814442,13.678,2625.0,2624.4,3.2078]
[1729260814652,13.678,2625.3,2625.2,0.38098]
[1729260814847,0.38098,2625.2,2624.5,5.522]
[1729260815147,3.2078,2625.4,2625.0,0.381]
[1729260815148,13.678,2625.1,2625.0,0.381]
[1729260815446,13.678,2625.4,2625.3,0.38096]
[1729260815651,3.58871,2625.7,2625.4,0.38095]
[1729260815652,13.678,2625.5,2625.4,0.38095]
[1729260815839,1.3632,2626.0,2625.4,0.38094]
[1729260815840,13.678,2625.6,2625.4,0.38094]
[1729260816040,13.678,2625.6,2625.5,0.38093]
[1729260816237,13.678,2625.6,2625.0,0.381]
[1729260816445,13.678,2625.6,2625.4,0.38094]
[1729260816647,0.38094,2625.5,2625.2,0.38096]
[1729260816853,0.38094,2625.5,2625.0,0.381]
[1729260817047,0.38094,2625.5,2625.2,0.38096]
[1729260817251,0.38094,2625.5,2625.2,0.38097]
[1729260817547,0.38096,2625.4,2624.9,3.2078]
[1729260817747,0.38094,2625.5,2625.2,0.38097]
[1729260817950,0.38094,2625.5,2625.2,0.38096]